{"text_format":"1","workbook":"xlsx","n_sheets":14,"sheets":["Cover","Info","Results","E01","E02","E03","E04","E05","E06","E07","E08","E09","E10","About"],"not_rendered":{"charts":11,"images":37,"macros":1,"external_links":0,"defined_names":15,"comments":0,"pivot_tables":0},"unopened":[],"bounds":{"document_bytes":16777216,"sheet_cells":100000,"rows_first":2000,"rows_last":500,"rows_between":2000,"halvings":0,"cell_chars":16384,"cell_head_chars":4096},"cells_cut":0,"cells_raw":0,"read":"whole","date_system":"1900"}

{"sheet":"Cover","index":0,"n_rows":0,"n_cols":0,"rows_kept":0,"cut":false,"hidden":false,"merged":[]}

{"sheet":"Info","index":1,"n_rows":39,"n_cols":4,"rows_kept":39,"cut":false,"hidden":false,"merged":[[0,0,0,16383],[38,1,38,3],[39,1,39,3],[2,1,2,2],[3,1,3,2],[4,1,4,2],[5,1,5,2],[6,1,6,2],[37,1,37,3],[31,1,31,2],[32,1,32,2],[33,1,33,2],[34,1,34,2],[35,1,35,2]]}
[]
[]
[null,"Ova procjena",null,"Odgovor"]
[null,"Ime grada:"]
[null,"Vrsta grada (opština, gradsko područje itd.):"]
[null,"Zemlja:"]
[null,"Datum procjene:"]
[]
[null,"Profil grada (obavezno)","Odgovor","Datum izvora"]
[null,"Zvanje najvišeg nivoa vlasti (npr. gradonačelnik itd.)"]
[null,"Ukupan broj stanovnika grada:"]
[null,"Površina grada u kvadratnim metrima:"]
[null,"Gustina naseljenosti (po kvadratnom metru):"]
[null,"Stanovnici koji su omladina (15-24) (%):"]
[null,"Stanovnici koji su starija lica (65+) (%):"]
[null,"Pol (domaćinstva na čijem su čelu žene):"]
[null,"Stopa pismenosti (% pismenog stanovništva):"]
[null,"Stopa siromaštva (% stanovništva koje ne živi u siromaštvu):"]
[null,"Prosječni prihod domaćinstva (USD):"]
[null,"Stanovnici koji nisu državljani (%)"]
[null,"Najvjerovatniji poznati rizik od katastrofe:"]
[null,"Najozbiljnija poznata katastrofa:"]
[]
[null,"Profil grada (izborno)","Odgovor","Datum izvora"]
[null,"Ukupan broj domaćinstava:"]
[null,"Broj osoba po jedinici domaćinstva:"]
[null,"Troškovi života (USD):"]
[null,"BDP zemlje po glavi stanovnika (USD):"]
[null,"Džinijev koeficijent:"]
[null,"BDP grada po glavi stanovnika (USD):"]
[]
[null,"Tim lokalne vlade za otpornost i smanjenje rizika od katastrofa",null,"Odgovor"]
[null,"Ime osobe koja vodi/koordiniše izradu procjene u Obrascu za ocjenjivanje:"]
[null,"Organizacija:"]
[null,"Kontakt detalji:"]
[null,"Spremnost na dijeljenje rezultata ili njihovu upotrebu za primjer/studiju slučaja od strane UNDRR-a i partnera:"]
[]
[null,"Informacije o zainteresovanim stranama"]
[null,"Molimo da navedete sve zainteresovane strane (aktere) koji su podržali ovu procjenu."]

{"sheet":"Results","index":2,"n_rows":152,"n_cols":13,"rows_kept":152,"cut":false,"hidden":false,"merged":[[57,3,57,6],[39,3,39,6],[63,3,63,6],[89,2,89,5],[90,2,90,5],[91,2,91,5],[32,3,32,6],[50,3,50,6],[87,3,87,6],[71,2,71,5],[72,2,72,5],[74,2,74,5],[34,2,34,5],[41,2,41,5],[42,2,42,5],[43,2,43,5],[52,2,52,5],[59,2,59,5],[65,2,65,5],[69,3,69,6],[77,3,77,6],[73,2,73,5],[113,1,113,3],[96,2,96,5],[104,2,104,5],[105,2,105,5],[99,2,99,5],[111,1,111,2],[94,3,94,5],[102,3,102,6],[97,2,97,5],[98,2,98,5],[79,2,79,5],[80,2,80,5],[81,2,81,5]]}
[]
[]
[]
[]
[]
[]
[]
[]
[]
[]
[]
[]
[]
[]
[]
[]
[]
[]
[]
[]
[]
[]
[]
[]
[]
[]
[]
[]
[]
[]
[]
[]
[null,"Osnovna stavka 01: ",null,{"$f":"D118","v":"Organizovati za otpornost - Integracija javnog zdravstva i državnog upravljanja"}]
[]
[null,{"$f":"C130","v":"A1.1"},{"$f":"E130","v":"Zdravstvo je dio državnog upravljanja rizikom od katastrofa u više sektora"},null,null,null,{"$f":"F130","v":0}]
[]
[]
[]
[]
[null,"Osnovna stavka 02: ",null,{"$f":"D119","v":"Identifikovati, razumjeti i koristiti trenutne i buduće scenarije rizika - Integracija javnog zdravstva i scenarija katastrofa"}]
[]
[null,{"$f":"C131","v":"A2.1"},{"$f":"E131","v":"Uključenje niza vanrednih situacija i katastrofa (npr. izbijanje bolesti/ pandemije, glad, nedostatak vode, itd.) kao zasebnih scenarija katastrofa "},null,null,null,{"$f":"F131","v":0}]
[null,{"$f":"C132","v":"A2.2"},{"$f":"E132","v":"Uključivanje predvidljivih uticaja drugih scenarija rizika od katastrofa na javno zdravstvo (tj. poplava, prekomjerne toplote, zemljotres) "},null,null,null,{"$f":"F132","v":0}]
[null,{"$f":"C133","v":"A2.3"},{"$f":"E133","v":"Uključivanje već postojećih hroničnih zdravstvenih stanja, uključujući neprenosive bolesti, u planiranje katastrofa "},null,null,null,{"$f":"F133","v":0}]
[]
[]
[]
[]
[]
[]
[null,"Osnovna stavka 03:",null,{"$f":"D120","v":"Ojačati finansijski kapacitet za otpornost - Integracija javnog zdravstva i finansija"}]
[]
[null,{"$f":"C134","v":"A3.1"},{"$f":"E134","v":"Finansiranje za aspekte otpornosti koji se tiču javnog zdravstva"},null,null,null,{"$f":"F134","v":0}]
[]
[]
[]
[]
[null,"Osnovna stavka 04:",null,{"$f":"D121","v":"Ostvariti otporni urbani razvoj - Integracija javnog zdravstva i upotreba zemljišta/građevinskih kodeksa"}]
[]
[null,{"$f":"C135","v":"A4.1"},{"$f":"E135","v":"Usaglašenost ključnih zdravstvenih ustanova sa zoniranjem zemljišta i građevinskim kodeksima koji grade otpornost "},null,null,null,{"$f":"F135","v":0}]
[]
[]
[]
[null,"Osnovna stavka 05:",null,{"$f":"D122","v":"Očuvati prirodne amortizere kako bi se unaprijedile zaštitne funkcije prirodnih ekosistema - Upravljanje uslugama ekosistema koje utiču na javno zdravlje"}]
[]
[null,{"$f":"C136","v":"A5.1"},{"$f":"E136","v":"Očuvanje i upravljanje uslugama ekosistema koje obezbjeđuju koristi po javno zdravlje "},null,null,null,{"$f":"F136","v":0}]
[]
[]
[]
[null,"Osnovna stavka 06:",null,{"$f":"D123","v":"Ojačati institucionalni kapacitet za otpornost - Integracija javnog zdravstva i institucionalnih kapaciteta"}]
[]
[null,{"$f":"C137","v":"A6.1"},{"$f":"E137","v":"Dostupnost radne snage u javnom zdravstvu koja ima relevantne sposobnosti i vještine za otpornost na katastrofe"},null,null,null,{"$f":"F137","v":0}]
[null,{"$f":"C138","v":"A6.2"},{"$f":"E138","v":"Dostavljanje podataka o sistemu javnog zdravstva drugim akterima"},null,null,null,{"$f":"F138","v":0}]
[null,{"$f":"C139","v":"A6.2.1"},{"$f":"E139","v":"Dostavljanje drugih podataka akterima sistema javnog zdravstva "},null,null,null,{"$f":"F139","v":0}]
[null,{"$f":"C140","v":"A6.2.2"},{"$f":"E140","v":"Zaštita i pristup zdravstvenoj evidenciji pojedinaca "},null,null,null,{"$f":"F140","v":0}]
[]
[]
[null,"Osnovna stavka 07: ",null,{"$f":"D124","v":"Razumjeti i ojačati društveni kapacitet za otpornost - Integracija javnog zdravstva i društvenih kapaciteta"}]
[]
[null,{"$f":"C141","v":"A7.1"},{"$f":"E141","v":"Djelotvornost sistema javnog zdravstva u angažovanju zajednice po pitanju upravljanja rizikom od katastrofa "},null,null,null,{"$f":"F141","v":0}]
[null,{"$f":"C142","v":"A7.1.2"},{"$f":"E142","v":"Pristup zajednice informacijama o javnom zdravlju i povjerenje u iste"},null,null,null,{"$f":"F142","v":0}]
[null,{"$f":"C143","v":"A7.2"},{"$f":"E143","v":"Sposobnost zajednice da se „vrati u normalu“ – mentalno zdravlje "},null,null,null,{"$f":"F143","v":0}]
[]
[]
[]
[]
[]
[null,"Osnovna stavka 08:",null,{"$f":"D125","v":"Povećati otpornost infrastrukture - Integracija  javnog zdravstva i otpornosti infrastr"}]
[]
[null,{"$f":"C144","v":"A8.1"},{"$f":"E144","v":"Jačanje strukturalne i nestrukturalne bezbijednosti i funkcionalnosti objekata / infrastrukture javnog zdravstva koje nisu razmatrane u Osnovnoj stavci 8 "},null,null,null,{"$f":"F144","v":0}]
[null,{"$f":"C145","v":"A8.2"},{"$f":"E145","v":"Kapacitet infrastrukture javnog zdravstva za iznenadni porast broja korisnika koji nije razmotren u Osnovnoj stavci 8 "},null,null,null,{"$f":"F145","v":0}]
[null,{"$f":"C146","v":"A8.3"},{"$f":"E146","v":"Kontinuitet njege za osobe koje su prethodno oboljele koji nije razmotren u Osnovnoj stavci 8. "},null,null,null,{"$f":"F146","v":0}]
[]
[]
[null,"Osnovna stavka 09:",null,{"$f":"D126","v":"Osigurati djelotvoran odgovor na katas - Integracija  javnog zdravstva i odgovora na katastrofe"}]
[]
[null,{"$f":"C147","v":"A9.1"},{"$f":"E147","v":"Sistemi ranog upozoravanja za vanredne situacije vezane za zdravlje"},null,null,null,{"$f":"F147","v":0}]
[null,{"$f":"C148","v":"A9.2"},{"$f":"E148","v":"Integracija javnog zdravlja sa upravljanjem vanrednim situacijama "},null,null,null,{"$f":"F148","v":0}]
[null,{"$f":"C149","v":"A9.3"},{"$f":"E149","v":"Razmatranje stanovništva izloženog većem riziku ili osoba koje borave kod kuće i pate od već postojećih zdravstvenih problema"},null,null,null,{"$f":"F149","v":0}]
[null,{"$f":"C150","v":"A9.4"},{"$f":"E150","v":"Sposobnost za dostavljanje sredstava javnog zdravlja osobama kojima su ona potrebna "},null,null,null,{"$f":"F150","v":0}]
[]
[]
[null,"Osnovna stavka 10: ",null,{"$f":"D127","v":"Ubrzati oporavak i ponovo izgraditi na bolji način - Integracija  javnog zdravstva i oporavka/ponovne izgradnje na bolji način"}]
[]
[null,{"$f":"C151","v":"A10.1"},{"$f":"E151","v":"Ublažavanje dugoročnog uticaja na javno zdravlje i dobrobit javnosti"},null,null,null,{"$f":"F151","v":0}]
[null,{"$f":"C152","v":"A10.2"},{"$f":"E152","v":"Učenje i poboljšavanje "},null,null,null,{"$f":"F152","v":0}]
[]
[]
[]
[]
[]
[null,{"$f":"TODAY()","v":"2021-03-04"},null,null,null,null,null,{"$f":"Info!$B$4","v":"Ime grada:"},{"$f":"Info!$D$4","v":0},null,{"$f":"Info!$B$6","v":"Zemlja:"},{"$f":"Info!$D$6","v":0}]
[]
[]
[]
[]
[null,null,"Label","Name",null,"Essential","TotalScore","MaxScore","Label"]
[null,null,"S1","Organizovati za otpornost - Integracija javnog zdravstva i državnog upravljanja",null,"E1",{"$f":"SUMIFS($F$130:$F$189,$B$130:$B$189,F118)","v":0},{"$f":"COUNTIFS($B$130:$B$152,F118)*5","v":5},"01",null,{"$f":"SUM(G118:G127)","v":0},{"$f":"K118/K119","v":0},{"$f":"CONCATENATE(\"Ukupni broj bodova za ovu procjenu je… \",SUM(G118:G127),\" / \",SUM(H118:H127))","v":"Ukupni broj bodova za ovu procjenu je… 0 / 115"}]
[null,null,"S2","Identifikovati, razumjeti i koristiti trenutne i buduće scenarije rizika - Integracija javnog zdravstva i scenarija katastrofa",null,"E2",{"$f":"SUMIFS($F$130:$F$1010,$B$130:$B$1010,F119)","v":0},15,"02",null,{"$f":"SUM(H118:H127)","v":115},{"$f":"1-L118","v":1}]
[null,null,"S3","Ojačati finansijski kapacitet za otpornost - Integracija javnog zdravstva i finansija",null,"E3",0,5,"03"]
[null,null,"S4","Ostvariti otporni urbani razvoj - Integracija javnog zdravstva i upotreba zemljišta/građevinskih kodeksa",null,"E4",0,5,"04"]
[null,null,"S5","Očuvati prirodne amortizere kako bi se unaprijedile zaštitne funkcije prirodnih ekosistema - Upravljanje uslugama ekosistema koje utiču na javno zdravlje",null,"E5",0,5,"05"]
[null,null,"S6","Ojačati institucionalni kapacitet za otpornost - Integracija javnog zdravstva i institucionalnih kapaciteta",null,"E6",0,20,"06"]
[null,null,"S7","Razumjeti i ojačati društveni kapacitet za otpornost - Integracija javnog zdravstva i društvenih kapaciteta",null,"E7",0,15,"07"]
[null,null,"S8","Povećati otpornost infrastrukture - Integracija  javnog zdravstva i otpornosti infrastr",null,"E8",0,15,"08"]
[null,null,"S9","Osigurati djelotvoran odgovor na katas - Integracija  javnog zdravstva i odgovora na katastrofe",null,"E9",0,20,"09"]
[null,null,"S10","Ubrzati oporavak i ponovo izgraditi na bolji način - Integracija  javnog zdravstva i oporavka/ponovne izgradnje na bolji način",null,"E10",0,10,"10"]
[]
[null,"Section","Ref",null,"Question","SelectedScore","ThisScore"]
[null,"E1",{"$f":"'E01'!$G$5","v":"A1.1"},null,{"$f":"'E01'!I5","v":"Zdravstvo je dio državnog upravljanja rizikom od katastrofa u više sektora"},{"$f":"IF(G130=\"\",0,IF(G130=0,0,6-G130))","v":0},{"$f":"OFFSET('E01'!$E$1,MATCH(C130,'E01'!G:G,0)+3,0)","v":0}]
[null,"E2",{"$f":"'E02'!$G$5","v":"A2.1"},null,{"$f":"'E02'!I5","v":"Uključenje niza vanrednih situacija i katastrofa (npr. izbijanje bolesti/ pandemije, glad, nedostatak vode, itd.) kao zasebnih scenarija katastrofa "},{"$f":"IF(G131=\"\",0,IF(G131=0,0,6-G131))","v":0},{"$f":"OFFSET('E02'!$E$1,MATCH(C131,'E02'!G:G,0)+3,0)","v":0}]
[null,"E2",{"$f":"'E02'!$G$18","v":"A2.2"},null,{"$f":"'E02'!$I$18","v":"Uključivanje predvidljivih uticaja drugih scenarija rizika od katastrofa na javno zdravstvo (tj. poplava, prekomjerne toplote, zemljotres) "},0,{"$f":"OFFSET('E02'!$E$1,MATCH(C132,'E02'!G:G,0)+3,0)","v":0}]
[null,"E2",{"$f":"'E02'!$G$31","v":"A2.3"},null,{"$f":"'E02'!$I$31","v":"Uključivanje već postojećih hroničnih zdravstvenih stanja, uključujući neprenosive bolesti, u planiranje katastrofa "},0,{"$f":"OFFSET('E02'!$E$1,MATCH(C133,'E02'!G:G,0)+3,0)","v":0}]
[null,"E3",{"$f":"'E03'!$G$5","v":"A3.1"},null,{"$f":"'E03'!$I$5","v":"Finansiranje za aspekte otpornosti koji se tiču javnog zdravstva"},0,{"$f":"OFFSET('E03'!$E$1,MATCH(C134,'E03'!G:G,0)+3,0)","v":0}]
[null,"E4",{"$f":"'E04'!$G$5","v":"A4.1"},null,{"$f":"'E04'!$I$5","v":"Usaglašenost ključnih zdravstvenih ustanova sa zoniranjem zemljišta i građevinskim kodeksima koji grade otpornost "},0,{"$f":"OFFSET('E04'!$E$1,MATCH(C135,'E04'!G:G,0)+3,0)","v":0}]
[null,"E5",{"$f":"'E05'!$G$5","v":"A5.1"},null,{"$f":"'E05'!$I$5","v":"Očuvanje i upravljanje uslugama ekosistema koje obezbjeđuju koristi po javno zdravlje "},0,{"$f":"OFFSET('E05'!$E$1,MATCH(C136,'E05'!G:G,0)+3,0)","v":0}]
[null,"E6",{"$f":"'E06'!$G$5","v":"A6.1"},null,{"$f":"'E06'!$I$5","v":"Dostupnost radne snage u javnom zdravstvu koja ima relevantne sposobnosti i vještine za otpornost na katastrofe"},0,{"$f":"OFFSET('E06'!$E$1,MATCH(C137,'E06'!G:G,0)+3,0)","v":0}]
[null,"E6",{"$f":"'E06'!$G$18","v":"A6.2"},null,{"$f":"'E06'!$I$18","v":"Dostavljanje podataka o sistemu javnog zdravstva drugim akterima"},0,{"$f":"OFFSET('E06'!$E$1,MATCH(C138,'E06'!G:G,0)+3,0)","v":0}]
[null,"E6",{"$f":"'E06'!$G$31","v":"A6.2.1"},null,{"$f":"'E06'!$I$31","v":"Dostavljanje drugih podataka akterima sistema javnog zdravstva "},0,{"$f":"OFFSET('E06'!$E$1,MATCH(C139,'E06'!G:G,0)+3,0)","v":0}]
[null,"E6",{"$f":"'E06'!$G$44","v":"A6.2.2"},null,{"$f":"'E06'!$I$44","v":"Zaštita i pristup zdravstvenoj evidenciji pojedinaca "},0,{"$f":"OFFSET('E06'!$E$1,MATCH(C140,'E06'!G:G,0)+3,0)","v":0}]
[null,"E7",{"$f":"'E07'!$G$5","v":"A7.1"},null,{"$f":"'E07'!$I$5","v":"Djelotvornost sistema javnog zdravstva u angažovanju zajednice po pitanju upravljanja rizikom od katastrofa "},0,{"$f":"OFFSET('E07'!$E$1,MATCH(C141,'E07'!G:G,0)+3,0)","v":0}]
[null,"E7",{"$f":"'E07'!$G$18","v":"A7.1.2"},null,{"$f":"'E07'!$I$18","v":"Pristup zajednice informacijama o javnom zdravlju i povjerenje u iste"},0,{"$f":"OFFSET('E07'!$E$1,MATCH(C142,'E07'!G:G,0)+3,0)","v":0}]
[null,"E7",{"$f":"'E07'!$G$31","v":"A7.2"},null,{"$f":"'E07'!$I$31","v":"Sposobnost zajednice da se „vrati u normalu“ – mentalno zdravlje "},0,{"$f":"OFFSET('E07'!$E$1,MATCH(C143,'E07'!G:G,0)+3,0)","v":0}]
[null,"E8",{"$f":"'E08'!$G$5","v":"A8.1"},null,{"$f":"'E08'!$I$5","v":"Jačanje strukturalne i nestrukturalne bezbijednosti i funkcionalnosti objekata / infrastrukture javnog zdravstva koje nisu razmatrane u Osnovnoj stavci 8 "},0,{"$f":"OFFSET('E08'!$E$1,MATCH(C144,'E08'!G:G,0)+3,0)","v":0}]
[null,"E8",{"$f":"'E08'!$G$18","v":"A8.2"},null,{"$f":"'E08'!$I$18","v":"Kapacitet infrastrukture javnog zdravstva za iznenadni porast broja korisnika koji nije razmotren u Osnovnoj stavci 8 "},{"$f":"IF(G145=\"\",0,IF(G145=0,0,6-G145))","v":0},{"$f":"OFFSET('E08'!$E$1,MATCH(C145,'E08'!G:G,0)+3,0)","v":0}]
[null,"E8",{"$f":"'E08'!$G$31","v":"A8.3"},null,{"$f":"'E08'!$I$31","v":"Kontinuitet njege za osobe koje su prethodno oboljele koji nije razmotren u Osnovnoj stavci 8. "},0,{"$f":"OFFSET('E08'!$E$1,MATCH(C146,'E08'!G:G,0)+3,0)","v":0}]
[null,"E9",{"$f":"'E09'!$G$5","v":"A9.1"},null,{"$f":"'E09'!$I$5","v":"Sistemi ranog upozoravanja za vanredne situacije vezane za zdravlje"},0,{"$f":"OFFSET('E09'!$E$1,MATCH(C147,'E09'!G:G,0)+3,0)","v":0}]
[null,"E9",{"$f":"'E09'!$G$18","v":"A9.2"},null,{"$f":"'E09'!$I$18","v":"Integracija javnog zdravlja sa upravljanjem vanrednim situacijama "},0,{"$f":"OFFSET('E09'!$E$1,MATCH(C148,'E09'!G:G,0)+3,0)","v":0}]
[null,"E9",{"$f":"'E09'!$G$31","v":"A9.3"},null,{"$f":"'E09'!$I$31","v":"Razmatranje stanovništva izloženog većem riziku ili osoba koje borave kod kuće i pate od već postojećih zdravstvenih problema"},0,{"$f":"OFFSET('E09'!$E$1,MATCH(C149,'E09'!G:G,0)+3,0)","v":0}]
[null,"E9",{"$f":"'E09'!$G$44","v":"A9.4"},null,{"$f":"'E09'!$I$44","v":"Sposobnost za dostavljanje sredstava javnog zdravlja osobama kojima su ona potrebna "},0,{"$f":"OFFSET('E09'!$E$1,MATCH(C150,'E09'!G:G,0)+3,0)","v":0}]
[null,"E10",{"$f":"'E10'!$G$5","v":"A10.1"},null,{"$f":"'E10'!$I$5","v":"Ublažavanje dugoročnog uticaja na javno zdravlje i dobrobit javnosti"},0,{"$f":"OFFSET('E10'!$E$1,MATCH(C151,'E10'!G:G,0)+3,0)","v":0}]
[null,"E10",{"$f":"'E10'!$G$18","v":"A10.2"},null,{"$f":"'E10'!$I$18","v":"Učenje i poboljšavanje "},0,{"$f":"OFFSET('E10'!$E$1,MATCH(C152,'E10'!G:G,0)+3,0)","v":0}]

{"sheet":"E01","index":3,"n_rows":15,"n_cols":9,"rows_kept":15,"cut":false,"hidden":false,"merged":[[7,2,7,3],[8,2,13,3],[5,2,5,3],[6,2,6,3]]}
["a"]
[]
[null,"A.1 Integracija  javnog zdravstva i državnog upravljanja (Osnovna stavka 1)",null,null,null,null,"A.1",null,"Integracija  javnog zdravstva i državnog upravljanja (Osnovna stavka 1)"]
[]
[null,"A.1.1 Zdravstvo je dio državnog upravljanja rizikom od katastrofa u više sektora",null,null,null,null,"A1.1",null,"Zdravstvo je dio državnog upravljanja rizikom od katastrofa u više sektora"]
[null,"Pitanje","Komentari"]
[]
[null,"Odgovor","Navedite načine verifikacije/potvrde (objašnjenje i dokaze)"]
[null,null,null,null,null,{"$f":"IF(E9=1,TRUE,FALSE)","v":false}]
[null,null,null,null,null,{"$f":"IF(E9=2,TRUE,FALSE)","v":false}]
[null,null,null,null,null,{"$f":"IF(E9=3,TRUE,FALSE)","v":false}]
[null,null,null,null,null,{"$f":"IF(E9=4,TRUE,FALSE)","v":false}]
[null,null,null,null,null,{"$f":"IF(E9=5,TRUE,FALSE)","v":false}]
[null,null,null,null,null,{"$f":"IF(E9=6,TRUE,FALSE)","v":false}]
[null,"Akcije za postizanje maksimalne otpornosti","Odgovorna institucija","Vremenski okvir"]

{"sheet":"E02","index":4,"n_rows":41,"n_cols":9,"rows_kept":41,"cut":false,"hidden":false,"merged":[[20,2,20,3],[8,2,13,3],[21,2,26,3],[34,2,39,3],[31,2,31,3],[32,2,32,3],[33,2,33,3],[5,2,5,3],[6,2,6,3],[7,2,7,3],[18,2,18,3],[19,2,19,3]]}
[]
[]
[null,"A.2 Integracija  javnog zdravstva i scenarija katastrofa (Osnovna stavka 2)",null,null,null,null,"A.2",null,"Integracija  javnog zdravstva i scenarija katastrofa (Osnovna stavka 2)"]
[]
[null,"A2.1 Uključenje niza vanrednih situacija i katastrofa (npr. izbijanje bolesti/ pandemije, glad, nedostatak vode, itd.) kao zasebnih scenarija katastrofa ",null,null,null,null,"A2.1",null,"Uključenje niza vanrednih situacija i katastrofa (npr. izbijanje bolesti/ pandemije, glad, nedostatak vode, itd.) kao zasebnih scenarija katastrofa "]
[null,"Pitanje","Komentari"]
[]
[null,"Odgovor","Navedite načine verifikacije/potvrde (objašnjenje i dokaze)"]
[null,null,null,null,null,{"$f":"IF(E9=1,TRUE,FALSE)","v":false}]
[null,null,null,null,null,{"$f":"IF(E9=2,TRUE,FALSE)","v":false}]
[null,null,null,null,null,{"$f":"IF(E9=3,TRUE,FALSE)","v":false}]
[null,null,null,null,null,{"$f":"IF(E9=4,TRUE,FALSE)","v":false}]
[null,null,null,null,null,{"$f":"IF(E9=5,TRUE,FALSE)","v":false}]
[null,null,null,null,null,{"$f":"IF(E9=6,TRUE,FALSE)","v":false}]
[null,"Akcije za postizanje maksimalne otpornosti","Odgovorna institucija","Vremenski okvir"]
[]
[]
[null,"A2.2 Uključivanje predvidljivih uticaja drugih scenarija rizika od katastrofa na javno zdravstvo (tj. poplava, prekomjerne toplote, zemljotres) ",null,null,null,null,"A2.2",null,"Uključivanje predvidljivih uticaja drugih scenarija rizika od katastrofa na javno zdravstvo (tj. poplava, prekomjerne toplote, zemljotres) "]
[null,"Pitanje","Komentari"]
[]
[null,"Odgovor","Navedite načine verifikacije/potvrde (objašnjenje i dokaze)"]
[null,null,null,null,null,{"$f":"IF(E22=1,TRUE,FALSE)","v":false}]
[null,null,null,null,null,{"$f":"IF(E22=2,TRUE,FALSE)","v":false}]
[null,null,null,null,null,{"$f":"IF(E22=3,TRUE,FALSE)","v":false}]
[null,null,null,null,null,{"$f":"IF(E22=4,TRUE,FALSE)","v":false}]
[null,null,null,null,null,{"$f":"IF(E22=5,TRUE,FALSE)","v":false}]
[null,null,null,null,null,{"$f":"IF(E22=6,TRUE,FALSE)","v":false}]
[null,"Akcije za postizanje maksimalne otpornosti","Odgovorna institucija","Vremenski okvir"]
[]
[]
[null,"A2.3 Uključivanje već postojećih hroničnih zdravstvenih stanja, uključujući neprenosive bolesti, u planiranje katastrofa ",null,null,null,null,"A2.3",null,"Uključivanje već postojećih hroničnih zdravstvenih stanja, uključujući neprenosive bolesti, u planiranje katastrofa "]
[null,"Pitanje","Komentari"]
[]
[null,"Odgovor","Navedite načine verifikacije/potvrde (objašnjenje i dokaze)"]
[null,null,null,null,null,{"$f":"IF(E35=1,TRUE,FALSE)","v":false}]
[null,null,null,null,null,{"$f":"IF(E35=2,TRUE,FALSE)","v":false}]
[null,null,null,null,null,{"$f":"IF(E35=3,TRUE,FALSE)","v":false}]
[null,null,null,null,null,{"$f":"IF(E35=4,TRUE,FALSE)","v":false}]
[null,null,null,null,null,{"$f":"IF(E35=5,TRUE,FALSE)","v":false}]
[null,null,null,null,null,{"$f":"IF(E35=6,TRUE,FALSE)","v":false}]
[null,"Akcije za postizanje maksimalne otpornosti","Odgovorna institucija","Vremenski okvir"]

{"sheet":"E03","index":5,"n_rows":15,"n_cols":9,"rows_kept":15,"cut":false,"hidden":false,"merged":[[4,1,4,3],[5,2,5,3],[6,2,6,3],[7,2,7,3],[8,2,13,3]]}
[]
[]
[null,"A3 Integracija javnog zdravstva i finansija (Osnovna stavka 3)",null,null,null,null,"A3",null,"Integracija javnog zdravstva i finansija (Osnovna stavka 3)"]
[]
[null,"A3.1 Finansiranje za aspekte otpornosti koji se tiču javnog zdravstva",null,null,null,null,"A3.1",null,"Finansiranje za aspekte otpornosti koji se tiču javnog zdravstva"]
[null,"Pitanje","Komentari"]
[]
[null,"Odgovor","Navedite načine verifikacije/potvrde (objašnjenje i dokaze)"]
[null,null,null,null,null,{"$f":"IF(E9=1,TRUE,FALSE)","v":false}]
[null,null,null,null,null,{"$f":"IF(E9=2,TRUE,FALSE)","v":false}]
[null,null,null,null,null,{"$f":"IF(E9=3,TRUE,FALSE)","v":false}]
[null,null,null,null,null,{"$f":"IF(E9=4,TRUE,FALSE)","v":false}]
[null,null,null,null,null,{"$f":"IF(E9=5,TRUE,FALSE)","v":false}]
[null,null,null,null,null,{"$f":"IF(E9=6,TRUE,FALSE)","v":false}]
[null,"Akcije za postizanje maksimalne otpornosti","Odgovorna institucija","Vremenski okvir"]

{"sheet":"E04","index":6,"n_rows":15,"n_cols":9,"rows_kept":15,"cut":false,"hidden":false,"merged":[[4,1,4,3],[5,2,5,3],[6,2,6,3],[7,2,7,3],[8,2,13,3]]}
[]
[]
[null,"A4 Integracija javnog zdravstva i upotreba zemljišta/građevinskih kodeksa (Osnovna stavka 4)",null,null,null,null,"A4",null,"Integracija javnog zdravstva i upotreba zemljišta/građevinskih kodeksa (Osnovna stavka 4)"]
[]
[null,"A4.1 Usaglašenost ključnih zdravstvenih ustanova sa zoniranjem zemljišta i građevinskim kodeksima koji grade otpornost ",null,null,null,null,"A4.1",null,"Usaglašenost ključnih zdravstvenih ustanova sa zoniranjem zemljišta i građevinskim kodeksima koji grade otpornost "]
[null,"Pitanje","Komentari"]
[]
[null,"Odgovor","Navedite načine verifikacije/potvrde (objašnjenje i dokaze)"]
[null,null,null,null,null,{"$f":"IF(E9=1,TRUE,FALSE)","v":false}]
[null,null,null,null,null,{"$f":"IF(E9=2,TRUE,FALSE)","v":false}]
[null,null,null,null,null,{"$f":"IF(E9=3,TRUE,FALSE)","v":false}]
[null,null,null,null,null,{"$f":"IF(E9=4,TRUE,FALSE)","v":false}]
[null,null,null,null,null,{"$f":"IF(E9=5,TRUE,FALSE)","v":false}]
[null,null,null,null,null,{"$f":"IF(E9=6,TRUE,FALSE)","v":false}]
[null,"Akcije za postizanje maksimalne otpornosti","Odgovorna institucija","Vremenski okvir"]

{"sheet":"E05","index":7,"n_rows":15,"n_cols":9,"rows_kept":15,"cut":false,"hidden":false,"merged":[[4,1,4,3],[5,2,5,3],[6,2,6,3],[7,2,7,3],[8,2,13,3]]}
[]
[]
[null,"A5 Upravljanje uslugama ekosistema koje utiču na javno zdravlje (Osnovna stavka 5)",null,null,null,null,"A5",null,"Upravljanje uslugama ekosistema koje utiču na javno zdravlje (Osnovna stavka 5)"]
[]
[null,"A5.1 Očuvanje i upravljanje uslugama ekosistema koje obezbjeđuju koristi po javno zdravlje ",null,null,null,null,"A5.1",null,"Očuvanje i upravljanje uslugama ekosistema koje obezbjeđuju koristi po javno zdravlje "]
[null,"Pitanje","Komentari"]
[]
[null,"Odgovor","Navedite načine verifikacije/potvrde (objašnjenje i dokaze)"]
[null,null,null,null,null,{"$f":"IF(E9=1,TRUE,FALSE)","v":false}]
[null,null,null,null,null,{"$f":"IF(E9=2,TRUE,FALSE)","v":false}]
[null,null,null,null,null,{"$f":"IF(E9=3,TRUE,FALSE)","v":false}]
[null,null,null,null,null,{"$f":"IF(E9=4,TRUE,FALSE)","v":false}]
[null,null,null,null,null,{"$f":"IF(E9=5,TRUE,FALSE)","v":false}]
[null,null,null,null,null,{"$f":"IF(E9=6,TRUE,FALSE)","v":false}]
[null,"Akcije za postizanje maksimalne otpornosti","Odgovorna institucija","Vremenski okvir"]

{"sheet":"E06","index":8,"n_rows":54,"n_cols":9,"rows_kept":54,"cut":false,"hidden":false,"merged":[[18,2,18,3],[47,2,52,3],[34,2,39,3],[21,2,26,3],[19,2,19,3],[20,2,20,3],[30,1,30,3],[31,2,31,3],[32,2,32,3],[33,2,33,3],[43,1,43,3],[44,2,44,3],[45,2,45,3],[46,2,46,3],[4,1,4,3],[5,2,5,3],[6,2,6,3],[7,2,7,3],[17,1,17,3],[8,2,13,3]]}
[]
[]
[null,"A6 Integracija javnog zdravstva i institucionalnih kapaciteta (Osnovna stavka 6)",null,null,null,null,"A6",null,"Integracija javnog zdravstva i institucionalnih kapaciteta (Osnovna stavka 6)"]
[]
[null,"A6.1 Dostupnost radne snage u javnom zdravstvu koja ima relevantne sposobnosti i vještine za otpornost na katastrofe",null,null,null,null,"A6.1",null,"Dostupnost radne snage u javnom zdravstvu koja ima relevantne sposobnosti i vještine za otpornost na katastrofe"]
[null,"Pitanje","Komentari"]
[]
[null,"Odgovor","Navedite načine verifikacije/potvrde (objašnjenje i dokaze)"]
[null,null,null,null,null,{"$f":"IF(E9=1,TRUE,FALSE)","v":false}]
[null,null,null,null,null,{"$f":"IF(E9=2,TRUE,FALSE)","v":false}]
[null,null,null,null,null,{"$f":"IF(E9=3,TRUE,FALSE)","v":false}]
[null,null,null,null,null,{"$f":"IF(E9=4,TRUE,FALSE)","v":false}]
[null,null,null,null,null,{"$f":"IF(E9=5,TRUE,FALSE)","v":false}]
[null,null,null,null,null,{"$f":"IF(E9=6,TRUE,FALSE)","v":false}]
[null,"Akcije za postizanje maksimalne otpornosti","Odgovorna institucija","Vremenski okvir"]
[]
[]
[null,"A6.2 Dostavljanje podataka o sistemu javnog zdravstva drugim akterima",null,null,null,null,"A6.2",null,"Dostavljanje podataka o sistemu javnog zdravstva drugim akterima"]
[null,"Pitanje","Komentari"]
[]
[null,"Odgovor","Navedite načine verifikacije/potvrde (objašnjenje i dokaze)"]
[null,null,null,null,null,{"$f":"IF(E22=1,TRUE,FALSE)","v":false}]
[null,null,null,null,null,{"$f":"IF(E22=2,TRUE,FALSE)","v":false}]
[null,null,null,null,null,{"$f":"IF(E22=3,TRUE,FALSE)","v":false}]
[null,null,null,null,null,{"$f":"IF(E22=4,TRUE,FALSE)","v":false}]
[null,null,null,null,null,{"$f":"IF(E22=5,TRUE,FALSE)","v":false}]
[null,null,null,null,null,{"$f":"IF(E22=6,TRUE,FALSE)","v":false}]
[null,"Akcije za postizanje maksimalne otpornosti","Odgovorna institucija","Vremenski okvir"]
[]
[]
[null,"A6.2.1 Dostavljanje drugih podataka akterima sistema javnog zdravstva ",null,null,null,null,"A6.2.1",null,"Dostavljanje drugih podataka akterima sistema javnog zdravstva "]
[null,"Pitanje","Komentari"]
[]
[null,"Odgovor","Navedite načine verifikacije/potvrde (objašnjenje i dokaze)"]
[null,null,null,null,null,{"$f":"IF(E35=1,TRUE,FALSE)","v":false}]
[null,null,null,null,null,{"$f":"IF(E35=2,TRUE,FALSE)","v":false}]
[null,null,null,null,null,{"$f":"IF(E35=3,TRUE,FALSE)","v":false}]
[null,null,null,null,null,{"$f":"IF(E35=4,TRUE,FALSE)","v":false}]
[null,null,null,null,null,{"$f":"IF(E35=5,TRUE,FALSE)","v":false}]
[null,null,null,null,null,{"$f":"IF(E35=6,TRUE,FALSE)","v":false}]
[null,"Akcije za postizanje maksimalne otpornosti","Odgovorna institucija","Vremenski okvir"]
[]
[]
[null,"A6.2.2 Zaštita i pristup zdravstvenoj evidenciji pojedinaca ",null,null,null,null,"A6.2.2",null,"Zaštita i pristup zdravstvenoj evidenciji pojedinaca "]
[null,"Pitanje","Komentari"]
[]
[null,"Odgovor","Navedite načine verifikacije/potvrde (objašnjenje i dokaze)"]
[null,null,null,null,null,{"$f":"IF(E48=1,TRUE,FALSE)","v":false}]
[null,null,null,null,null,{"$f":"IF(E48=2,TRUE,FALSE)","v":false}]
[null,null,null,null,null,{"$f":"IF(E48=3,TRUE,FALSE)","v":false}]
[null,null,null,null,null,{"$f":"IF(E48=4,TRUE,FALSE)","v":false}]
[null,null,null,null,null,{"$f":"IF(E48=5,TRUE,FALSE)","v":false}]
[null,null,null,null,null,{"$f":"IF(E48=6,TRUE,FALSE)","v":false}]
[null,"Akcije za postizanje maksimalne otpornosti","Odgovorna institucija","Vremenski okvir"]

{"sheet":"E07","index":9,"n_rows":43,"n_cols":9,"rows_kept":43,"cut":false,"hidden":false,"merged":[[18,2,18,3],[8,2,13,3],[21,2,26,3],[34,2,39,3],[19,2,19,3],[20,2,20,3],[30,1,30,3],[31,2,31,3],[32,2,32,3],[33,2,33,3],[4,1,4,3],[5,2,5,3],[6,2,6,3],[7,2,7,3],[17,1,17,3]]}
[]
[]
[null,"A7 Integracija javnog zdravstva i društvenih kapaciteta (Osnovna stavka 7)",null,null,null,null,"A7",null,"Integracija javnog zdravstva i društvenih kapaciteta (Osnovna stavka 7)"]
[null,null,null,null,null,null,""]
[null,"A7.1 Djelotvornost sistema javnog zdravstva u angažovanju zajednice po pitanju upravljanja rizikom od katastrofa ",null,null,null,null,"A7.1",null,"Djelotvornost sistema javnog zdravstva u angažovanju zajednice po pitanju upravljanja rizikom od katastrofa "]
[null,"Pitanje","Komentari",null,null,null,""]
[null,null,null,null,null,null,""]
[null,"Odgovor","Navedite načine verifikacije/potvrde (objašnjenje i dokaze)",null,null,null,""]
[null,null,null,null,null,{"$f":"IF(E9=1,TRUE,FALSE)","v":false},""]
[null,null,null,null,null,{"$f":"IF(E9=2,TRUE,FALSE)","v":false},""]
[null,null,null,null,null,{"$f":"IF(E9=3,TRUE,FALSE)","v":false},""]
[null,null,null,null,null,{"$f":"IF(E9=4,TRUE,FALSE)","v":false},""]
[null,null,null,null,null,{"$f":"IF(E9=5,TRUE,FALSE)","v":false},""]
[null,null,null,null,null,{"$f":"IF(E9=6,TRUE,FALSE)","v":false},""]
[null,"Akcije za postizanje maksimalne otpornosti","Odgovorna institucija","Vremenski okvir",null,null,""]
[null,null,null,null,null,null,""]
[null,null,null,null,null,null,""]
[null,"A7.1.2 Pristup zajednice informacijama o javnom zdravlju i povjerenje u iste",null,null,null,null,"A7.1.2",null,"Pristup zajednice informacijama o javnom zdravlju i povjerenje u iste"]
[null,"Pitanje","Komentari",null,null,null,""]
[null,null,null,null,null,null,""]
[null,"Odgovor","Navedite načine verifikacije/potvrde (objašnjenje i dokaze)",null,null,null,""]
[null,null,null,null,null,{"$f":"IF(E22=1,TRUE,FALSE)","v":false},""]
[null,null,null,null,null,{"$f":"IF(E22=2,TRUE,FALSE)","v":false},""]
[null,null,null,null,null,{"$f":"IF(E22=3,TRUE,FALSE)","v":false},""]
[null,null,null,null,null,{"$f":"IF(E22=4,TRUE,FALSE)","v":false},""]
[null,null,null,null,null,{"$f":"IF(E22=5,TRUE,FALSE)","v":false},""]
[null,null,null,null,null,{"$f":"IF(E22=6,TRUE,FALSE)","v":false},""]
[null,"Akcije za postizanje maksimalne otpornosti","Odgovorna institucija","Vremenski okvir",null,null,""]
[null,null,null,null,null,null,""]
[null,null,null,null,null,null,""]
[null,"A7.2 Sposobnost zajednice da se „vrati u normalu“ – mentalno zdravlje ",null,null,null,null,"A7.2",null,"Sposobnost zajednice da se „vrati u normalu“ – mentalno zdravlje "]
[null,"Pitanje","Komentari",null,null,null,""]
[null,null,null,null,null,null,""]
[null,"Odgovor","Navedite načine verifikacije/potvrde (objašnjenje i dokaze)",null,null,null,""]
[null,null,null,null,null,{"$f":"IF(E35=1,TRUE,FALSE)","v":false},""]
[null,null,null,null,null,{"$f":"IF(E35=2,TRUE,FALSE)","v":false},""]
[null,null,null,null,null,{"$f":"IF(E35=3,TRUE,FALSE)","v":false},""]
[null,null,null,null,null,{"$f":"IF(E35=4,TRUE,FALSE)","v":false},""]
[null,null,null,null,null,{"$f":"IF(E35=5,TRUE,FALSE)","v":false},""]
[null,null,null,null,null,{"$f":"IF(E35=6,TRUE,FALSE)","v":false},""]
[null,"Akcije za postizanje maksimalne otpornosti","Odgovorna institucija","Vremenski okvir",null,null,""]
[null,null,null,null,null,null,""]
[null,null,null,null,null,null,""]

{"sheet":"E08","index":10,"n_rows":43,"n_cols":9,"rows_kept":43,"cut":false,"hidden":false,"merged":[[34,2,39,3],[21,2,26,3],[8,2,13,3],[33,2,33,3],[4,1,4,3],[5,2,5,3],[6,2,6,3],[7,2,7,3],[17,1,17,3],[18,2,18,3],[19,2,19,3],[20,2,20,3],[30,1,30,3],[31,2,31,3],[32,2,32,3]]}
[]
[]
[null,"A8 Integracija  javnog zdravstva i otpornosti infrastrukture (Osnovna stavka 8)",null,null,null,null,"A8",null,"Integracija  javnog zdravstva i otpornosti infrastrukture (Osnovna stavka 8)"]
[null,null,null,null,null,null,""]
[null,"A8.1 Jačanje strukturalne i nestrukturalne bezbijednosti i funkcionalnosti objekata / infrastrukture javnog zdravstva koje nisu razmatrane u Osnovnoj stavci 8 ",null,null,null,null,"A8.1",null,"Jačanje strukturalne i nestrukturalne bezbijednosti i funkcionalnosti objekata / infrastrukture javnog zdravstva koje nisu razmatrane u Osnovnoj stavci 8 "]
[null,"Pitanje","Komentari",null,null,null,""]
[null,null,null,null,null,null,""]
[null,"Odgovor","Navedite načine verifikacije/potvrde (objašnjenje i dokaze)",null,null,null,""]
[null,null,null,null,null,{"$f":"IF(E9=1,TRUE,FALSE)","v":false},""]
[null,null,null,null,null,{"$f":"IF(E9=2,TRUE,FALSE)","v":false},""]
[null,null,null,null,null,{"$f":"IF(E9=3,TRUE,FALSE)","v":false},""]
[null,null,null,null,null,{"$f":"IF(E9=4,TRUE,FALSE)","v":false},""]
[null,null,null,null,null,{"$f":"IF(E9=5,TRUE,FALSE)","v":false},""]
[null,null,null,null,null,{"$f":"IF(E9=6,TRUE,FALSE)","v":false},""]
[null,"Akcije za postizanje maksimalne otpornosti","Odgovorna institucija","Vremenski okvir",null,null,""]
[null,null,null,null,null,null,""]
[null,null,null,null,null,null,""]
[null,"A8.2 Kapacitet infrastrukture javnog zdravstva za iznenadni porast broja korisnika koji nije razmotren u Osnovnoj stavci 8 ",null,null,null,null,"A8.2",null,"Kapacitet infrastrukture javnog zdravstva za iznenadni porast broja korisnika koji nije razmotren u Osnovnoj stavci 8 "]
[null,"Pitanje","Komentari",null,null,null,""]
[null,null,null,null,null,null,""]
[null,"Odgovor","Navedite načine verifikacije/potvrde (objašnjenje i dokaze)",null,null,null,""]
[null,null,null,null,null,{"$f":"IF(E22=1,TRUE,FALSE)","v":false},""]
[null,null,null,null,null,{"$f":"IF(E22=2,TRUE,FALSE)","v":false},""]
[null,null,null,null,null,{"$f":"IF(E22=3,TRUE,FALSE)","v":false},""]
[null,null,null,null,null,{"$f":"IF(E22=4,TRUE,FALSE)","v":false},""]
[null,null,null,null,null,{"$f":"IF(E22=5,TRUE,FALSE)","v":false},""]
[null,null,null,null,null,{"$f":"IF(E22=6,TRUE,FALSE)","v":false},""]
[null,"Akcije za postizanje maksimalne otpornosti","Odgovorna institucija","Vremenski okvir",null,null,""]
[null,null,null,null,null,null,""]
[null,null,null,null,null,null,""]
[null,"A8.3 Kontinuitet njege za osobe koje su prethodno oboljele koji nije razmotren u Osnovnoj stavci 8. ",null,null,null,null,"A8.3",null,"Kontinuitet njege za osobe koje su prethodno oboljele koji nije razmotren u Osnovnoj stavci 8. "]
[null,"Pitanje","Komentari",null,null,null,""]
[null,null,null,null,null,null,""]
[null,"Odgovor","Navedite načine verifikacije/potvrde (objašnjenje i dokaze)",null,null,null,""]
[null,null,null,null,null,{"$f":"IF(E35=1,TRUE,FALSE)","v":false},""]
[null,null,null,null,null,{"$f":"IF(E35=2,TRUE,FALSE)","v":false},""]
[null,null,null,null,null,{"$f":"IF(E35=3,TRUE,FALSE)","v":false},""]
[null,null,null,null,null,{"$f":"IF(E35=4,TRUE,FALSE)","v":false},""]
[null,null,null,null,null,{"$f":"IF(E35=5,TRUE,FALSE)","v":false},""]
[null,null,null,null,null,{"$f":"IF(E35=6,TRUE,FALSE)","v":false},""]
[null,"Akcije za postizanje maksimalne otpornosti","Odgovorna institucija","Vremenski okvir",null,null,""]
[null,null,null,null,null,null,""]
[null,null,null,null,null,null,""]

{"sheet":"E09","index":11,"n_rows":56,"n_cols":9,"rows_kept":56,"cut":false,"hidden":false,"merged":[[19,2,19,3],[20,2,20,3],[4,1,4,3],[5,2,5,3],[6,2,6,3],[7,2,7,3],[17,1,17,3],[18,2,18,3],[8,2,13,3],[47,2,52,3],[34,2,39,3],[21,2,26,3],[30,1,30,3],[31,2,31,3],[32,2,32,3],[33,2,33,3],[43,1,43,3],[44,2,44,3],[45,2,45,3],[46,2,46,3]]}
[]
[]
[null,"A9 Integracija  javnog zdravstva i odgovora na katastrofe (Osnovna stavka 9)",null,null,null,null,"A9",null,"Integracija  javnog zdravstva i odgovora na katastrofe (Osnovna stavka 9)"]
[null,null,null,null,null,null,""]
[null,"A9.1 Sistemi ranog upozoravanja za vanredne situacije vezane za zdravlje",null,null,null,null,"A9.1",null,"Sistemi ranog upozoravanja za vanredne situacije vezane za zdravlje"]
[null,"Pitanje","Komentari",null,null,null,""]
[null,null,null,null,null,null,""]
[null,"Odgovor","Navedite načine verifikacije/potvrde (objašnjenje i dokaze)",null,null,null,""]
[null,null,null,null,null,{"$f":"IF(E9=1,TRUE,FALSE)","v":false},""]
[null,null,null,null,null,{"$f":"IF(E9=2,TRUE,FALSE)","v":false},""]
[null,null,null,null,null,{"$f":"IF(E9=3,TRUE,FALSE)","v":false},""]
[null,null,null,null,null,{"$f":"IF(E9=4,TRUE,FALSE)","v":false},""]
[null,null,null,null,null,{"$f":"IF(E9=5,TRUE,FALSE)","v":false},""]
[null,null,null,null,null,{"$f":"IF(E9=6,TRUE,FALSE)","v":false},""]
[null,"Akcije za postizanje maksimalne otpornosti","Odgovorna institucija","Vremenski okvir",null,null,""]
[null,null,null,null,null,null,""]
[null,null,null,null,null,null,""]
[null,"A9.2 Integracija javnog zdravlja sa upravljanjem vanrednim situacijama ",null,null,null,null,"A9.2",null,"Integracija javnog zdravlja sa upravljanjem vanrednim situacijama "]
[null,"Pitanje","Komentari",null,null,null,""]
[null,null,null,null,null,null,""]
[null,"Odgovor","Navedite načine verifikacije/potvrde (objašnjenje i dokaze)",null,null,null,""]
[null,null,null,null,null,{"$f":"IF(E22=1,TRUE,FALSE)","v":false},""]
[null,null,null,null,null,{"$f":"IF(E22=2,TRUE,FALSE)","v":false},""]
[null,null,null,null,null,{"$f":"IF(E22=3,TRUE,FALSE)","v":false},""]
[null,null,null,null,null,{"$f":"IF(E22=4,TRUE,FALSE)","v":false},""]
[null,null,null,null,null,{"$f":"IF(E22=5,TRUE,FALSE)","v":false},""]
[null,null,null,null,null,{"$f":"IF(E22=6,TRUE,FALSE)","v":false},""]
[null,"Akcije za postizanje maksimalne otpornosti","Odgovorna institucija","Vremenski okvir",null,null,""]
[null,null,null,null,null,null,""]
[null,null,null,null,null,null,""]
[null,"A9.3 Razmatranje stanovništva izloženog većem riziku ili osoba koje borave kod kuće i pate od već postojećih zdravstvenih problema",null,null,null,null,"A9.3",null,"Razmatranje stanovništva izloženog većem riziku ili osoba koje borave kod kuće i pate od već postojećih zdravstvenih problema"]
[null,"Pitanje","Komentari",null,null,null,""]
[null,null,null,null,null,null,""]
[null,"Odgovor","Navedite načine verifikacije/potvrde (objašnjenje i dokaze)",null,null,null,""]
[null,null,null,null,null,{"$f":"IF(E35=1,TRUE,FALSE)","v":false},""]
[null,null,null,null,null,{"$f":"IF(E35=2,TRUE,FALSE)","v":false},""]
[null,null,null,null,null,{"$f":"IF(E35=3,TRUE,FALSE)","v":false},""]
[null,null,null,null,null,{"$f":"IF(E35=4,TRUE,FALSE)","v":false},""]
[null,null,null,null,null,{"$f":"IF(E35=5,TRUE,FALSE)","v":false},""]
[null,null,null,null,null,{"$f":"IF(E35=6,TRUE,FALSE)","v":false},""]
[null,"Akcije za postizanje maksimalne otpornosti","Odgovorna institucija","Vremenski okvir",null,null,""]
[null,null,null,null,null,null,""]
[null,null,null,null,null,null,""]
[null,"A9.4 Sposobnost za dostavljanje sredstava javnog zdravlja osobama kojima su ona potrebna ",null,null,null,null,"A9.4",null,"Sposobnost za dostavljanje sredstava javnog zdravlja osobama kojima su ona potrebna "]
[null,"Pitanje","Komentari",null,null,null,""]
[null,null,null,null,null,null,""]
[null,"Odgovor","Navedite načine verifikacije/potvrde (objašnjenje i dokaze)",null,null,null,""]
[null,null,null,null,null,{"$f":"IF(E48=1,TRUE,FALSE)","v":false},""]
[null,null,null,null,null,{"$f":"IF(E48=2,TRUE,FALSE)","v":false},""]
[null,null,null,null,null,{"$f":"IF(E48=3,TRUE,FALSE)","v":false},""]
[null,null,null,null,null,{"$f":"IF(E48=4,TRUE,FALSE)","v":false},""]
[null,null,null,null,null,{"$f":"IF(E48=5,TRUE,FALSE)","v":false},""]
[null,null,null,null,null,{"$f":"IF(E48=6,TRUE,FALSE)","v":false},""]
[null,"Akcije za postizanje maksimalne otpornosti","Odgovorna institucija","Vremenski okvir",null,null,""]
[null,null,null,null,null,null,""]
[null,null,null,null,null,null,""]

{"sheet":"E10","index":12,"n_rows":28,"n_cols":9,"rows_kept":28,"cut":false,"hidden":false,"merged":[[21,2,26,3],[8,2,13,3],[19,2,19,3],[20,2,20,3],[18,2,18,3],[4,1,4,3],[5,2,5,3],[6,2,6,3],[7,2,7,3],[17,1,17,3]]}
[]
[]
[null,"A10 Integracija  javnog zdravstva i oporavka/ponovne izgradnje na bolji način (Osnovna stavka 10)",null,null,null,null,"A10",null,"Integracija  javnog zdravstva i oporavka/ponovne izgradnje na bolji način (Osnovna stavka 10)"]
[]
[null,"A10.1 Ublažavanje dugoročnog uticaja na javno zdravlje i dobrobit javnosti",null,null,null,null,"A10.1",null,"Ublažavanje dugoročnog uticaja na javno zdravlje i dobrobit javnosti"]
[null,"Pitanje","Komentari"]
[]
[null,"Odgovor","Navedite načine verifikacije/potvrde (objašnjenje i dokaze)"]
[null,null,null,null,null,{"$f":"IF(E9=1,TRUE,FALSE)","v":false}]
[null,null,null,null,null,{"$f":"IF(E9=2,TRUE,FALSE)","v":false}]
[null,null,null,null,null,{"$f":"IF(E9=3,TRUE,FALSE)","v":false}]
[null,null,null,null,null,{"$f":"IF(E9=4,TRUE,FALSE)","v":false}]
[null,null,null,null,null,{"$f":"IF(E9=5,TRUE,FALSE)","v":false}]
[null,null,null,null,null,{"$f":"IF(E9=6,TRUE,FALSE)","v":false}]
[null,"Akcije za postizanje maksimalne otpornosti","Odgovorna institucija","Vremenski okvir"]
[]
[]
[null,"A10.2 Učenje i poboljšavanje ",null,null,null,null,"A10.2",null,"Učenje i poboljšavanje "]
[null,"Pitanje","Komentari"]
[]
[null,"Odgovor","Navedite načine verifikacije/potvrde (objašnjenje i dokaze)"]
[null,null,null,null,null,{"$f":"IF(E22=1,TRUE,FALSE)","v":false}]
[null,null,null,null,null,{"$f":"IF(E22=2,TRUE,FALSE)","v":false}]
[null,null,null,null,null,{"$f":"IF(E22=3,TRUE,FALSE)","v":false}]
[null,null,null,null,null,{"$f":"IF(E22=4,TRUE,FALSE)","v":false}]
[null,null,null,null,null,{"$f":"IF(E22=5,TRUE,FALSE)","v":false}]
[null,null,null,null,null,{"$f":"IF(E22=6,TRUE,FALSE)","v":false}]
[null,"Akcije za postizanje maksimalne otpornosti","Odgovorna institucija","Vremenski okvir"]

{"sheet":"About","index":13,"n_rows":0,"n_cols":0,"rows_kept":0,"cut":false,"hidden":false,"merged":[]}